Cogmind - Beta 16 --- EXPLORER MODE // 2025.11.20 @ 11:55:16 Player: K.K.Y. Result: Destroyed by Y-45 Defender with Heavy Assault Rifle Performance ------------- Evolutions (2) 1000 Regions Visited (5) 1000 Robots Destroyed (91) 455 Value Destroyed (3278) 3278 Prototype IDs (15) 300 Alien Tech Used (0) 0 Bonus (895) 895 TOTAL SCORE: 6928 Bonus ------- High Alert Combat Kills 81 Follower Combat Kills 114 Entered Garrisons 200 Used RIF Installer 500 Cogmind --------- Core Integrity 0/550 Matter 278/300 Energy 143/160 System Corruption 0% Temperature Cool (89) Movement Treading (305) Ox4 Location -8/Garrison Parts ------- > --- POWER (1) -------- Light Nuclear Core > --- PROPULSION (5) --- Advanced Treads > --- UTILITY (4) ------ Huge Storage Unit > --- WEAPON (2) ------- Heavy Particle Gun Heavy Particle Cannon > --- INVENTORY (25) --- Light Deuterium Engine Improved Heat Sink Improved Cooling System Huge Storage Unit Machine Analyzer Improved Sensor Array Improved Sensor Array Improved Signal Interpreter Improved Terrain Scanner Improved Terrain Scan Processor Transport Network Coupler Core Shielding Core Shielding Light Armor Plating Hacking Suite System Shield Heavy EM Shotgun Heavy Particle Gun Advanced Beam Rifle Plasma Cutter Peak State ------------ > --- POWER ------------ Heavy Ion Engine > --- PROPULSION ------- Improved Treads Improved Treads Improved Treads Armored Treads Advanced Treads > --- UTILITY ---------- Improved Heat Sink Huge Storage Unit Core Shielding Light Armor Plating > --- WEAPON ----------- Advanced Beam Rifle Advanced Beam Rifle > --- INVENTORY -------- Improved Treads Improved Heat Sink Huge Storage Unit Machine Analyzer Improved Sensor Array Improved Sensor Array Improved Signal Interpreter Improved Terrain Scanner Improved Terrain Scan Processor Transport Network Coupler Core Shielding Core Shielding Light Armor Plating Hacking Suite System Shield Heavy EM Shotgun Pulse Rifle Heavy Particle Gun Heavy Particle Gun Heavy Particle Cannon Gauss Rifle Assault Cannon Assault Cannon Mining Laser Plasma Cutter [Rating: 35] Favorites ----------- Power Heavy Ion Engine Engine Heavy Ion Engine Power Core Light Nuclear Core Propulsion Improved Treads Treads Improved Treads Leg Aluminum Leg Utility Huge Storage Unit Device Improved Heat Sink Storage Huge Storage Unit Processor Signal Interpreter Protection Core Shielding Weapon Advanced Beam Rifle Energy Gun Advanced Beam Rifle Energy Cannon Heavy Particle Cannon Ballistic Gun Gauss Rifle Ballistic Cannon Improved Light Cannon Special Weapon Mining Laser Build | -11 -10 -10 -9 -8 -8 ------- Run | Yrd Mat Min Mat Mat Gar Slots Evolved 5 | . 1 . 2 2 . Power . | . . . . . . Propulsion 3 | . . . 2 1 . Utility 2 | . 1 . . 1 . Weapon . | . . . . . . Parts Attached 49 | 7 2 1 17 11 11 Power 6 | 1 . . 3 1 1 Engine 5 | 1 . . 3 1 . Core 1 | . . . . . 1 Reactor . | . . . . . . Propulsion 15 | 2 . . 6 5 2 Treads 11 | . . . 4 5 2 Leg 4 | 2 . . 2 . . Wheel . | . . . . . . Hover . | . . . . . . Flight . | . . . . . . Utility 10 | 2 1 1 2 3 1 Device 1 | . . . . 1 . Storage 3 | 1 . . 1 1 . Processor 1 | 1 . . . . . Hackware . | . . . . . . Protection 5 | . 1 1 1 1 1 Artifact . | . . . . . . Weapon 18 | 2 1 . 6 2 7 Energy Gun 8 | 1 1 . 3 2 1 Energy Cannon 1 | . . . . . 1 Ballistic Gun 3 | 1 . . 1 . 1 Ballistic Cannon 4 | . . . 2 . 2 Launcher . | . . . . . . Special Weapon 2 | . . . . . 2 Impact Weapon . | . . . . . . Slashing Weapon . | . . . . . . Piercing Weapon . | . . . . . . Special Melee Weapon . | . . . . . . Unidentified Prototypes 4 | . . . 3 1 . Parts Lost 17 | . . 1 . 1 15 Power 1 | . . . . . 1 Propulsion 6 | . . . . . 6 Utility 5 | . . 1 . 1 3 Weapon 5 | . . . . . 5 Highest Loss Streak 10 | . . 1 . 1 10 To Critical Strikes . | . . . . . . Average Backups 16 | 1 . 5 9 20 22 Power . | . . . . . . Propulsion . | . . . . . . Utility 10 | . . 1 5 12 14 Weapon 5 | . . 2 2 5 6 Tool/Special . | . . . . . . Unused Backups 25 | . . . 7 3 15 Power 2 | . . . . 2 . Propulsion . | . . . . . . Utility 17 | . . . 2 1 14 Weapon 6 | . . . 5 . 1 Tool/Special . | . . . . . . Average Slot Usage (%) 75 | . 87 98 97 94 47 Engine 6 | . 12 12 10 8 2 Treads 18 | . . . 12 40 14 Leg 7 | . 25 25 27 . . Device 2 | . . . . 5 2 Storage 8 | . 12 12 10 8 8 Processor 1 | . 12 4 . . . Protection 11 | . . 19 20 15 4 Energy Gun 12 | . 17 25 9 14 7 Ballistic Cannon 1 | . . . 9 . . Special Weapon 2 | . . . . . 5 Peak Build Rating 35 | 7 8 9 23 34 35 Average Rating 19 | 4 7 8 16 30 17 On Entrance 12 | . 7 8 9 17 34 Avg Prop Armor Cover (%) 7 | . . . . 7 . Naked Turns . | . . . . . . Heaviest Build 98 | 19 20 23 92 98 98 Greatest Support 115 | 20 20 20 92 115 114 Greatest Overweight (x) 27 | . . 1 1 1 27 Average Overweight (x) 1 | . . . . . 5 Largest Inventory Capacity 25 | 10 10 10 25 25 25 Average Capacity 20 | 8 10 10 11 25 25 Most Carried 25 | 5 3 10 14 25 25 Average Carried 16 | 1 . 5 9 20 22 Final Capacity 25 | 10 10 10 25 25 25 Final Carried 25 | . 2 10 14 25 20 Class Distribution -------------------- 100% | Hacker-Mutant Dominant Class ---------------- Hacker-Mutant | -10/Materials Hacker-Mutant | -10/Mines Hacker-Mutant | -9/Materials Hacker-Mutant | -8/Materials Hacker-Mutant | -8/Garrison Resources | -11 -10 -10 -9 -8 -8 ----------- Run | Yrd Mat Min Mat Mat Gar Matter Collected 1383 | 200 107 20 323 235 498 Remotely . | . . . . . . Salvage Created 3741 | . 169 385 548 2000 639 Parts 173 | . 8 13 46 80 26 Haulers Intercepted 9 | . 1 . 3 5 . Recyclers Shooed 2 | . . 1 . 1 . Parts Field Recycled . | . . . . . . Retrieved Matter . | . . . . . . Parts Self-Destructed . | . . . . . . Prevented . | . . . . . . Parts Restored . | . . . . . . Kills | -11 -10 -10 -9 -8 -8 ------- Run | Yrd Mat Min Mat Mat Gar Combat Hostiles Destroyed 66 | . 4 6 13 26 17 Guns 51 | . 4 5 3 25 14 Cannons 13 | . . . 10 . 3 Classes Destroyed 12 | . 3 2 4 2 1 Worker 2 | . . . 1 1 . Hauler 9 | . 1 . 3 5 . Recycler 5 | . . 1 . 4 . Mechanic 1 | . . . 1 . . Operator 1 | . . . 1 . . Watcher 7 | . . . 4 2 1 Swarmer 11 | . 2 . 5 2 2 Grunt 26 | . 2 4 4 12 4 Brawler 2 | . . . . 1 1 Sentry 22 | . . 2 4 9 7 Hunter 3 | . . . . 2 1 Behemoth 2 | . . . . . 2 Best Kill Streak 7 | . 2 3 5 7 4 Combat Bots Only 5 | . 2 2 4 5 4 Max Kills in Single Turn 2 | . 1 1 1 2 1 Gunslinging . | . . . . . . Exploded . | . . . . . . Melee . | . . . . . . Uniques/NPCs Destroyed . | . . . . . . Combat | -11 -10 -10 -9 -8 -8 -------- Run | Yrd Mat Min Mat Mat Gar Hostile Shots Fired 468 | . 12 41 44 105 266 Missed 129 | . 3 10 11 30 75 Hits 339 | . 9 31 33 75 191 Projectile 339 | . 9 31 33 75 191 Critical Strikes 15 | . . . . 6 9 Damage Taken 3788 | . 63 254 227 696 2548 Core 625 | . 14 42 19 71 479 Absorbed by Shields . | . . . . . . Redirected to Shielding 52 | . . 7 3 14 28 Ignored by Resistances 2283 | . 41 160 147 422 1513 Core Remaining (%) 90 | 100 . 77 95 . . Volleys Fired 338 | . 13 28 41 84 172 Largest 2 | . 2 2 2 2 2 Hottest 163 | . 100 100 110 122 163 Shots Fired 569 | . 26 56 82 152 253 Gun 395 | . 26 56 20 152 141 Cannon 122 | . . . 62 . 60 Launcher . | . . . . . . Special 52 | . . . . . 52 Kinetic 160 | . 9 . 62 . 89 Thermal 409 | . 17 56 20 152 164 Explosive . | . . . . . . Electromagnetic . | . . . . . . Robot Hit Streak 47 | . 17 43 9 47 46 Robot Miss Streak 2 | . 1 1 2 2 2 Penetration Max . | . . . . . . Secondary Targets 6 | . 1 1 . 3 1 Max Gunslinging Chain 1 | . 1 1 . 1 1 Shots Hit Robots 390 | . 22 50 55 128 135 Core Hits 142 | . 9 16 26 58 33 Critical Kills . | . . . . . . Critical Parts Destroyed 2 | . . . . . 2 Critical Strikes 32 | . 2 3 4 12 11 Burn 25 | . 2 3 1 12 7 Destroy 3 | . . . . . 3 Blast 4 | . . . 3 . 1 Melee Attacks . | . . . . . . Impact . | . . . . . . Slashing . | . . . . . . Piercing . | . . . . . . Sneak Attacks . | . . . . . . Combat Hostiles . | . . . . . . Follow-up Attacks . | . . . . . . Damage Inflicted 7545 | . 261 631 1142 2582 2929 Guns 5196 | . 261 631 240 2582 1482 Cannons 2277 | . . . 902 . 1375 Explosions . | . . . . . . Melee . | . . . . . . Ramming . | . . . . . . Kinetic 2813 | . 75 . 902 . 1836 Thermal 4732 | . 186 631 240 2582 1093 Explosive . | . . . . . . Electromagnetic . | . . . . . . Impact . | . . . . . . Slashing . | . . . . . . Piercing . | . . . . . . Highest Corruption . | . . . . . . Average Corruption . | . . . . . . Corruption Purged . | . . . . . . Corruption Blocked . | . . . . . . Overload Shots . | . . . . . . Overflow Damage 22 | . . . 22 . . Projectiles 22 | . . . 22 . . Explosions . | . . . . . . Melee . | . . . . . . Knockbacks 6 | . . . 6 . . Impact . | . . . . . . Kinetic 6 | . . . 6 . . Secondary . | . . . . . . Self-Inflicted Damage . | . . . . . . Shots . | . . . . . . Rammed . | . . . . . . Targets Rammed . | . . . . . . Kicked . | . . . . . . Crushed . | . . . . . . Highest Temperature 466 | . 117 466 118 369 203 Average Temperature 86 | . 36 218 30 91 48 Received Heat Transfer 1809 | . 42 195 102 531 939 Effects 14 | . . 10 . 4 . Shutdowns 1 | . . 1 . . . Energy Bleed 4 | . . 3 . 1 . Interference 6 | . . 5 . 1 . Short Circuit 2 | . . . . 2 . Damage (minor) 1 | . . 1 . . . Siege Activations . | . . . . . . Martial Activations . | . . . . . . Shielding Activations . | . . . . . . Robots Disrupted . | . . . . . . Combat Hostiles . | . . . . . . Robots Corrupted . | . . . . . . Combat Hostiles . | . . . . . . Parts Fried . | . . . . . . Impact Corruptions . | . . . . . . Robots Melted 2 | . . 1 . 1 . Combat Hostiles 2 | . . 1 . 1 . Parts Melted 33 | . . 8 . 17 8 Heat Transferred 11768 | . 703 2072 666 5698 2629 Parts Sabotaged . | . . . . . . Parts Stolen . | . . . . . . Parts Stripped . | . . . . . . Power Chain Reactions . | . . . . . . Alert | -11 -10 -10 -9 -8 -8 ------- Run | Yrd Mat Min Mat Mat Gar Maximum Alert Level 4 | . . . . . 4 Low Security (%) 66 | 100 100 100 100 100 18 Level 1 8 | . . . . . 21 Level 2 12 | . . . . . 29 Level 3 8 | . . . . . 19 Level 4 4 | . . . . . 11 Level 5 . | . . . . . . High Security . | . . . . . . Max Security . | . . . . . . Peak Influence 1375 | . 50 50 174 113 1375 Initial . | . . . . . . Average 237 | . 11 4 65 17 537 Influence Increases 3189 | . 109 145 603 797 1535 Destroy 0b10 Robot/C 1440 | . 80 120 380 520 340 Destroy 0b10 Robot/NC 125 | . 5 5 50 60 5 Destroy Leader 380 | . 22 20 124 184 30 Allied During Kill 4 | . . . 4 . . Successful Hack 42 | . . . 32 . 10 Disable Machine 8 | . . . 8 . . Anti-Garrison Action 1000 | . . . . . 1000 Destroy Structure 145 | . 2 . 5 3 135 Partial Spotted 30 | . . . . 15 15 Lose Combat Pursuer 15 | . . . . 15 . Influence Decreases 1824 | . 109 145 603 797 170 Time Decay 1590 | . 109 145 549 787 . Lost Part 160 | . . . . 10 150 Lost Ally 74 | . . . 54 . 20 Squads Dispatched 4 | . . . 2 2 . Investigation 1 | . . . 1 . . Extermination . | . . . . . . Reinforcement 2 | . . . 1 1 . Assault . | . . . . . . Garrison 1 | . . . . 1 . Intercept . | . . . . . . Searches Triggered . | . . . . . . Construction Impeded . | . . . . . . Haulers Reinforced . | . . . . . . Active Scanning Responses . | . . . . . . Cargo Convoy Interrupts . | . . . . . . Stealth | -11 -10 -10 -9 -8 -8 --------- Run | Yrd Mat Min Mat Mat Gar Distress Signals 8 | . 1 . 4 3 . Communications Jammed . | . . . . . . Distress Signals . | . . . . . . Times Spotted 96 | . 5 6 26 39 20 Peak Tracking Total 6 | . 2 2 4 6 3 Tactical Retreats 1 | . . . . 1 . Traps | -11 -10 -10 -9 -8 -8 ------- Run | Yrd Mat Min Mat Mat Gar Traps Triggered 5 | . . . 1 . 4 Indirectly . | . . . . . . Trap Hack Attempts . | . . . . . . Triggered . | . . . . . . Disarmed 4 | . . . . 4 . Reprogrammed . | . . . . . . Reused . | . . . . . . Traps Extracted . | . . . . . . Installed . | . . . . . . Triggered . | . . . . . . Machines | -11 -10 -10 -9 -8 -8 ---------- Run | Yrd Mat Min Mat Mat Gar Machines Disabled 4 | . . . 2 . 2 Max in Single Turn 1 | . . . 1 . 1 Garrison Relay 2 | . . . . . 2 Machines Repaired . | . . . . . . Machines Dismantled . | . . . . . . Machines Sabotaged . | . . . . . . Overloaded Fab Kills . | . . . . . . Hacking | -11 -10 -10 -9 -8 -8 --------- Run | Yrd Mat Min Mat Mat Gar Machines Accessed 22 | . 4 . 6 11 1 Terminals 17 | . 4 . 4 8 1 Fabricators . | . . . . . . Repair Stations . | . . . . . . Recycling Units . | . . . . . . Scanalyzers 4 | . . . 2 2 . Garrison Access 1 | . . . . 1 . Total Hacks 51 | . 8 . 15 27 1 Successful 37 | . 4 . 13 19 1 Failed 14 | . 4 . 2 8 . Catastrophic 1 | . 1 . . . . Database Lockouts . | . . . . . . Manual . | . . . . . . Terminals 39 | . 8 . 10 20 1 Fabricators . | . . . . . . Repair Stations . | . . . . . . Recycling Units . | . . . . . . Scanalyzers 10 | . . . 5 5 . Garrison Access 2 | . . . . 2 . Terminal Hacks 26 | . 4 . 8 13 1 Prototype ID Bank 6 | . 1 . 2 3 . Level Access Points 1 | . . . 1 . . Branch Access Points 2 | . . . 1 1 . Emergency Access Points 3 | . 1 . 1 . 1 Scanalyzer Index 1 | . 1 . . . . Locate Traps 2 | . 1 . . 1 . Disarm Traps 1 | . . . . 1 . Transport Status 1 | . . . . 1 . Hauler Manifests 3 | . . . 2 1 . Registered Components 2 | . . . 1 1 . Zone Layout 4 | . . . . 4 . Fabricator Hacks . | . . . . . . Repair Station Hacks . | . . . . . . Recycling Unit Hacks . | . . . . . . Scanalyzer 10 | . . . 5 5 . Insert Component 1 | . . . . 1 . Retrieve Study 9 | . . . 5 4 . Garrison Access Hacks 1 | . . . . 1 . Unlock Access 1 | . . . . 1 . Unauthorized Hacks . | . . . . . . Terminals . | . . . . . . Fabricators . | . . . . . . Repair Stations . | . . . . . . Recycling Units . | . . . . . . Scanalyzers . | . . . . . . Garrison Access . | . . . . . . Data Cores Recovered 1 | . . . 1 . . Used 1 | . . . 1 . . Hacking Detections 9 | . 2 . 2 5 . Full Trace Events 4 | . 1 . 1 2 . Feedback Events . | . . . . . . Feedback Blocked . | . . . . . . Robot Schematics Acquired . | . . . . . . Robots Built . | . . . . . . Authchips . | . . . . . . Time . | . . . . . . Total Robot Build Rating . | . . . . . . Part Schematics Acquired . | . . . . . . Parts Built . | . . . . . . Authchips . | . . . . . . Time . | . . . . . . Total Part Build Rating . | . . . . . . Part Studies Acquired 9 | . . . 5 4 . Parts Repaired . | . . . . . . Time . | . . . . . . Parts Recycled . | . . . . . . Recycled Matter . | . . . . . . Retrieved Matter . | . . . . . . Retrieved Components . | . . . . . . Parts Scanalyzed . | . . . . . . Part Schematics Acquired . | . . . . . . Parts Damaged . | . . . . . . Bothacking | -11 -10 -10 -9 -8 -8 ------------ Run | Yrd Mat Min Mat Mat Gar Used RIF Installer 1 | . . . . . 1 Robots Hacked . | . . . . . . Non-combat . | . . . . . . Combat . | . . . . . . Robot Hacks Applied . | . . . . . . Relay Couplers Released 8 | . . . . . 8 Machine Destruction 8 | . . . . . 8 Fabnet Peak Effective % . | . . . . . . Robots Rewired 1 | . . . . . 1 Allies Hacked . | . . . . . . Hacks Repelled . | . . . . . . Allies | -11 -10 -10 -9 -8 -8 -------- Run | Yrd Mat Min Mat Mat Gar Total Allies 4 | . . 3 . . 1 Largest Group 3 | . . 3 3 . 1 Highest-Rated Group 40 | . . 40 40 . 14 Highest-Rated Ally 16 | . . 16 16 . 14 Total Orders . | . . . . . . Ally Attacks 27 | . . . 27 . . Total Damage 296 | . . . 296 . . Kills 6 | . . . 6 . . Allies Corrupted . | . . . . . . Allies Melted . | . . . . . . Intel | -11 -10 -10 -9 -8 -8 ------- Run | Yrd Mat Min Mat Mat Gar Active Infowar (turns) . | . . . . . . Robot Analysis Total . | . . . . . . Derelict Logs Recovered 3 | . . 3 . . . Drone Launches . | . . . . . . Drone Recoveries . | . . . . . . Exploration | -11 -10 -10 -9 -8 -8 ------------- Run | Yrd Mat Min Mat Mat Gar Turns Passed 7311 | 55 288 983 912 2037 3036 Spaces Moved 2883 | 47 202 502 561 965 606 Core 116 | 20 . . . . 96 Treads 1644 | . . . 169 965 510 Legs 1123 | 27 202 502 392 . . Wheels . | . . . . . . Hover . | . . . . . . Flight . | . . . . . . Fastest Speed 50 | 50 120 120 105 157 157 Average Speed 199 | 90 120 153 130 159 401 Slowest Speed 1400 | 120 120 190 240 200 1400 Overloaded Moves . | . . . . . . Propulsion Burnouts . | . . . . . . Robots Hopped . | . . . . . . Potential Cave-ins . | . . . . . . Cave-ins Triggered . | . . . . . . Exploration Rate (%) 56 | 3 41 93 61 81 61 Regions Visited 5 Branch Regions 1 Pre-discovered Areas 1 | . . 1 . . . Known Exits Taken 5 | 1 1 1 1 1 . Unknown Exits Taken . | . . . . . . Scrap Searched 1 | . . 1 . . . Spaces Dug . | . . . . . . Terrain Destroyed 3 | . . . 3 . . Melee . | . . . . . . Projectile 3 | . . . 3 . . AOE . | . . . . . . Terrain Rammed . | . . . . . . Walls Destroyed . | . . . . . . Machines Disabled . | . . . . . . Actions | -11 -10 -10 -9 -8 -8 --------- Run | Yrd Mat Min Mat Mat Gar Total 3777 | 58 222 658 667 1311 861 Wait 372 | . . 119 10 212 31 Move 2879 | 46 201 501 560 965 606 Hop . | . . . . . . Pick Up 63 | 5 4 9 14 24 7 Fast Attach 11 | 2 . . 9 . . Attach 33 | 5 2 1 3 9 13 Detach 10 | . 1 . 3 4 2 Swap 15 | . . . 6 4 5 Drop 36 | . 1 . 21 9 5 Fire 338 | . 13 28 41 84 172 Melee . | . . . . . . Ram . | . . . . . . Kick . | . . . . . . Crush . | . . . . . . Escape Stasis 17 | . . . . . 17 Rewire 3 | . . . . . 3 Trap . | . . . . . . Miscellaneous . | . . . . . . Route ------- -11/Scrapyard -10/Materials -10/Mines (discovered 2 exits: *Mat x2) -9/Materials (discovered 4 exits: *Mat x3 / *Min) -8/Materials (discovered 6 exits: *Fac x3 / *Sto x2 / Gar) -8/Garrison (discovered 2 exits: *Mat x2) History --------- Turn | Location | Event 8 | -11/Scrapyard | Identified exit to Materials 8 | -11/Scrapyard | Discovered exit to Materials (range 14) 56 | -11/Scrapyard | Entered Materials 56 | -10/Materials | Evolved 1 slot: Utility x1 308 | -10/Materials | Build established: Hacker-Mutant 313 | -10/Materials | Identified exit to Mines 313 | -10/Materials | Discovered exit to Mines (range 12) 344 | -10/Materials | Entered Mines 349 | -10/Mines | Identified exit to Materials 349 | -10/Mines | Discovered exit to Materials (range 12) 454 | -10/Mines | Learned location of 1 exit from Materials 502 | -10/Mines | Learned location of Storage (-8) 898 | -10/Mines | Assisted by bots powering up and referring to "LRC-V3" 1303 | -10/Mines | Received a Rocket Launcher from a helpful Derelict 1327 | -10/Mines | Entered Materials 1327 | -9/Materials | Accompanied by 3 allies 1327 | -9/Materials | Evolved 2 slots: Propulsion x2 1328 | -9/Materials | Identified exit to Mines 1754 | -9/Materials | Identified exit to Materials 1754 | -9/Materials | Discovered exit to Materials (range 12) 2239 | -9/Materials | Entered another Materials area 2239 | -8/Materials | Evolved 2 slots: Propulsion x1, Utility x1 2295 | -8/Materials | Identified exit to Storage 2295 | -8/Materials | Discovered exit to Storage (range 6) 2664 | -8/Materials | Garrison activated, responded to threat 3204 | -8/Materials | Discovered exit to Storage (range 9) 3343 | -8/Materials | Identified exit to Factory 3343 | -8/Materials | Discovered exit to Factory (range 12) 3711 | -8/Materials | Discovered exit to Factory (range 3) 4205 | -8/Materials | Discovered exit to Factory (range 11) 4276 | -8/Materials | Identified exit to Garrison 4276 | -8/Materials | Entered Garrison 4374 | -8/Garrison | Triggered checkpoint 4635 | -8/Garrison | Triggered checkpoint 4820 | -8/Garrison | Triggered checkpoint 4856 | -8/Garrison | Garrison Relay disabled 5016 | -8/Garrison | Spotted B-75 Beast 5050 | -8/Garrison | Spotted B-75 Beast 5115 | -8/Garrison | Destroyed B-75 Beast 5179 | -8/Garrison | Core integrity fell below 50% 5204 | -8/Garrison | Lost 10 parts (1p4n3u2w) 5251 | -8/Garrison | Destroyed B-75 Beast 5589 | -8/Garrison | Identified exit to Materials 5589 | -8/Garrison | Discovered exit to Materials (range 7) 5618 | -8/Garrison | Core integrity fell below 20% 5989 | -8/Garrison | Garrison Relay disabled 6010 | -8/Garrison | Triggered checkpoint 6148 | -8/Garrison | Installed Relay Interface Framework 7178 | -8/Garrison | Triggered checkpoint 7270 | -8/Garrison | Discovered exit to Materials (range 10) 7290 | -8/Garrison | Triggered checkpoint 7312 | -8/Garrison | Destroyed by Y-45 Defender with Heavy Assault Rifle Last Messages --------------- 07228_ W-25 Informer destroyed. 07231_ The unstable cave ceiling collapses. 07233_ Acquired 2 matter. 07239_ Attempting to rewire E-15 Imp. 07240_ E-15 Imp rewired. 07241_ Acquired 2 matter. 07243_ The unstable cave ceiling collapses. 07255_ Acquired 1 matter. 07261_ Acquired Lgt. Deuterium Engine. 07263_ The unstable cave ceiling collapses. 07270_ EXIT=FOUND: MATERIALS 07276_ ALERT: Garrison interior compromised. 07290_ Beams of light sweep through the air. An alarm sounds. 07290_ Imp 3a destroyed. 07300_ Y-45 Defender destroyed. 07300_ Mining Laser+ destroyed. 07301_ Imp. Treads+ destroyed. 07306_ Pulse Rifle+ destroyed. 07310_ Y-45 Defender destroyed. Map ----- +----------------------------------------------------+ | ### ##?????# [ ! | | ??###++++"+###??????#########"##### ## ## # | | ???# #???????????????# ##### ## ## # | | ???# #???????????????# + " | | ???##########???????????????##### " | | ?????????????????????????????#### " | | ??????????????????????#####??# " " | | ??????????????????##### # ##?# #### ## ##^^^# | | ??????????????????#=%% # ###"#### ## ## ^^# | | ?????????????????##[= # | | ?????????????????#= | | ?????????????????## = # ##+#### # | | ??????????????????# %# ##?????######""""###+## | | ??????????????????## #### #????????????????????? | | ???????????????????###??# ##???????????+????????? | | ???????????????########## #?????????????????????? | | ???????????????+ +?????????????????????? | | ???????????????# #?????????????????????? | | ???????????????# < ##### ###?????????????????????? | | ???????????????#???????# #???????????????????????? | | ???????????????????????# #???????????????????????? | | ???????????????????????# #???????????????????????? | | ???????????????????????# #???????????????????????? | | ??????????????????????## #???????????????????????? | | ??????????????????????#; ###?????????????????????? | | ???????????????????#" +%@%#?????????????????????? | | ???????????????????+" +=* Y ??????????????????? | | ???????????????????#" ?+[%=## ##?????????????????? | | ???????????????????#"??+ ###??#??????????????????? | | ???????????????????#???# #???+???????????????????? | | ???????????????????????# #???????????????????????? | | ???????????????????????# #???????????????????????? | | ???????????????????????# ???????????????????????? | | ???????????????????????###?+++++???+?????????????? | | ?????????????????????????????????????????????????? | | ?????????????????????????????????????????????????? | | ?????????????????????????????????????????????????? | | ?????????????????????????????????????????????????? | | ?????????????????????????????????????????????????? | | ?????????????????????????????????????????????????+ | | ?????????????????????????????????????????????????? | | ?????????????????????????????????????????????????? | | ????????????????????????????????????????????????+? | | ???????????????????????????????+???+???????????/?? | | ?????????????????????????????????????????????????? | | ????????????????????????????????????????????????+? | | ?????????????????????????????????????????????????? | | ?????????????????????????????????????????????????? | | ?????????????????????????????????????????????????? | | ?????????????????????????????????????????????????? | +----------------------------------------------------+ Best States ------------- Heat Dissipation 45 Energy Generation 14 Energy Capacity 280 Matter Stores 300 Matter Capacity 300 Sight Range 16 Terrain Scan Density 10 Armor Coverage 150 Resistance: KI 35 Resistance: TH 35 Resistance: EX 35 Resistance: EM 35 Resistance: I 35 Resistance: S 35 Resistance: P 35 Core Shielding 20 Evasion (%) 55 Recoil Reduction 5 Offensive Hacking 20 Item Schematics ----------------- None Robot Schematics ------------------ None Fabricated ------------ Nothing Repaired ---------- Nothing Studied --------- Aluminum Leg | -9/Materials | Hacked Imp. Light Cannon | -9/Materials | Hacked Plasma Cutter | -9/Materials | Hacked Mining Laser | -9/Materials | Hacked Imp. Treads | -9/Materials | Hacked Assault Cannon | -8/Materials | Hacked Hvy. Particle Cannon | -8/Materials | Hacked Pulse Rifle | -8/Materials | Hacked Adv. Treads | -8/Materials | Hacked Alien Tech Used ----------------- None Achievements -------------- None Challenges ------------ None Game ------ Seed StrikePointStripper Manual? 0 Play Time 00:41:44 Cumulative 122.7 hours Start 2025.11.20 @ 11:18:16 End 2025.11.20 @ 11:55:16 Sessions 1 Manual Loads 0 Difficulty Explorer Special Mode None Game No. 137 Rogue 0 Adventurer 0 Explorer 137 Win Type - Total 0 Types 0/0/0/0/0/0/0/0/0/0 Lore% 65 Gallery% 64 Achievement% 49 Wizard Run 0 Options --------- Layout 1 ASCII 0 Keyboard 0 Movement Mouse Keybinds 0 Fullscreen 1 Font 24/Smallcaps Map View 50x35 Zoom Use 0% Tactical HUD 1 Map Filters NONE Filters NONE Steam 1 RUN: 1c1112ed-447e-4c0a-afdb-8aa6b704726e